bitfinex-derivatives/quotes_SOLF0:USTF0_20241203
["timestamp","ask_amount","ask_price","bid_price","bid_amount"]
[1733229983104,2.2262,224.56,224.51,2.28]
[1733229983701,2.226,224.58,224.51,2.28]
[1733229983901,0.17117,224.6,224.51,2.28]
[1733229984703,0.17117,224.6,224.54,2.2263]
[1733229985105,12.60453426,224.63,224.54,2.2263]
[1733229985305,12.60453426,224.63,224.51,4.5066]
[1733229985697,12.60453426,224.63,224.51,2.28]
[1733229986005,12.60453426,224.63,224.52,2.2265]
[1733229986206,12.60453426,224.63,224.51,2.28]
[1733229986904,12.60453426,224.63,224.51,4.5066]
[1733229987095,12.60453426,224.6,224.51,4.5066]
[1733229987299,12.60453426,224.6,224.51,2.28]
[1733229988203,3.6027,224.66,224.51,2.28]
[1733229988204,12.60453426,224.63,224.51,2.28]
[1733229989707,12.60453426,224.63,224.55,2.2262]
[1733229990004,3.6027,224.66,224.56,2.28]
[1733229990299,1.3227,224.66,224.56,2.28]
[1733229990500,1.3227,224.66,224.58,2.2259]
[1733229990708,12.60453426,224.68,224.56,2.28]
[1733229991512,12.60453426,224.68,224.58,2.2259]
[1733229991708,12.60453426,224.68,224.56,2.28]
[1733229992011,12.60453426,224.65,224.55,2.28]
[1733229992411,12.60453426,224.65,224.54,4.5063]
[1733229992808,12.60453426,224.65,224.55,2.2262]
[1733229993514,12.60453426,224.65,224.54,2.28]
[1733229993702,12.60453426,224.65,224.54,4.5063]
[1733229994215,12.60453426,224.62,224.52,2.2265]
[1733229994401,12.60453426,224.62,224.5,4.9678]
[1733229994603,2.28,224.7,224.5,17.57233426]
[1733229994915,12.60453426,224.66,224.55,2.2262]
[1733229995109,12.60453426,224.66,224.53,12.60453426]
[1733229995506,12.60453426,224.66,224.56,2.2261]
[1733229995809,12.60453426,224.66,224.55,2.28]
[1733229997006,12.60453426,224.69,224.58,2.2259]
[1733229997411,12.60453426,224.69,224.55,2.28]
[1733229997804,12.60453426,224.69,224.6,2.2257]
[1733229998911,12.60453426,224.69,224.58,2.2259]
[1733229999214,12.60453426,224.66,224.57,2.28]
[1733230000308,12.60453426,224.66,224.57,4.506]
[1733230000815,12.60453426,224.66,224.58,2.2259]
[1733230001508,12.60453426,224.69,224.59,2.2258]
[1733230002615,12.60453426,224.69,224.57,2.28]
[1733230003211,12.60453426,224.69,224.61,2.2256]
[1733230004806,2.28,224.71,224.63,2.2254]
[1733230006512,2.28,224.71,224.62,2.28]
[1733230006714,13.97843426,224.72,224.62,4.5055]
[1733230007916,13.97843426,224.72,224.62,2.28]
[1733230008920,12.60453426,224.69,224.58,1.3504]
[1733230009219,2.28,224.68,224.57,2.28]
[1733230010419,2.28,224.68,224.56,2.2261]
[1733230010420,2.28,224.68,224.56,4.5061]
[1733230010808,2.28,224.68,224.56,14.88453426]
[1733230011412,2.28,224.68,224.6,2.2257]
[1733230012417,2.28,224.68,224.59,2.2258]
[1733230012716,13.97843426,224.72,224.56,14.88453426]
[1733230012910,16.25843426,224.72,224.61,2.2256]
[1733230013115,16.25843426,224.72,224.61,2.28]
[1733230013116,13.97843426,224.72,224.61,2.28]
[1733230013419,1.3739,224.72,224.61,2.28]
[1733230014015,1.3739,224.72,224.64,2.2254]
[1733230014218,1.2702,224.74,224.62,12.60453426]
[1733230014717,14.88453426,224.75,224.66,2.2251]
[1733230014913,14.88453426,224.75,224.62,12.60453426]
[1733230015522,14.88453426,224.75,224.65,2.2252]
[1733230015716,12.60453426,224.75,224.66,2.28]
[1733230016209,12.60453426,224.75,224.66,4.5051]
[1733230016615,12.60453426,224.75,224.66,2.28]
[1733230016918,12.60453426,224.75,224.67,2.225]
[1733230017120,12.60453426,224.75,224.66,2.28]
[1733230017810,14.88453426,224.78,224.66,2.28]
[1733230018217,12.60453426,224.75,224.66,2.28]
[1733230019314,14.88453426,224.78,224.66,2.28]
[1733230019612,12.60453426,224.78,224.67,2.225]
[1733230020010,12.60453426,224.78,224.66,2.28]
[1733230020419,12.60453426,224.78,224.65,2.2252]
[1733230020620,12.60453426,224.78,224.66,2.28]
[1733230021622,12.60453426,224.78,224.67,2.2251]
[1733230021812,4.657,224.8,224.66,2.28]
[1733230022019,4.657,224.8,224.68,12.60453426]
[1733230022213,4.657,224.8,224.71,2.2247]
[1733230022415,1.3604,224.8,224.71,4.5047]
[1733230022622,1.3604,224.8,224.71,2.28]
[1733230022921,2.2239,224.79,224.73,2.2244]
[1733230023325,2.63985,224.81,224.76,2.2242]
[1733230023626,2.63985,224.81,224.74,12.60453426]
[1733230023826,0.41615,224.81,224.74,12.60453426]
[1733230024123,0.41615,224.81,224.71,12.60453426]
[1733230024323,12.60453426,224.84,224.71,12.60453426]
[1733230024625,2.2237,224.81,224.72,2.28]
[1733230024824,12.60453426,224.84,224.72,2.28]
[1733230026119,12.60453426,224.84,224.71,12.60453426]
[1733230026325,12.60453426,224.84,224.72,2.22]
[1733230027923,2.224,224.78,224.72,4.4445]
[1733230028925,2.2242,224.76,224.68,12.60453426]
[1733230029121,2.22,224.8,224.65,12.60453426]
[1733230029320,2.22,224.8,224.66,2.22]
[1733230029624,2.2245,224.73,224.67,2.225]
[1733230029823,2.2245,224.73,224.66,2.22]
[1733230030023,2.22,224.8,224.66,2.22]
[1733230030928,2.22,224.8,224.68,12.60453426]
[1733230031317,14.82453426,224.84,224.69,1.2895]
[1733230031521,2.2241,224.77,224.72,2.2245]
[1733230031827,14.82453426,224.84,224.72,2.22]
[1733230032218,2.2241,224.77,224.72,4.4446]
[1733230032825,2.2238,224.8,224.75,2.2242]
[1733230034728,12.60453426,224.84,224.72,2.22]
[1733230035431,2.224,224.79,224.73,2.2244]
[1733230035628,12.60453426,224.84,224.73,2.2244]
[1733230035823,2.2239,224.8,224.74,2.2243]
[1733230036025,12.60453426,224.84,224.72,2.22]
[1733230036627,3.5099,224.86,224.74,12.60453426]
[1733230036829,1.2899,224.86,224.74,12.60453426]
[1733230037727,1.2899,224.86,224.77,2.224]
[1733230037728,2.2237,224.82,224.77,2.224]
[1733230038026,2.2237,224.82,224.77,3.78440843]
[1733230038530,2.2237,224.82,224.78,2.224]
[1733230038723,2.2237,224.82,224.77,2.22]
[1733230039929,2.2237,224.82,224.77,2.2241]
[1733230041723,2.2237,224.82,224.76,2.22]
[1733230041926,2.2237,224.82,224.78,2.224]
[1733230043833,2.2237,224.82,224.78,1.13216795]
[1733230045933,308.1724488,224.86,224.78,8.03182908]
[1733230046133,314.91437788,224.86,224.8,8.03182908]
[1733230046337,8.03182908,224.86,224.8,8.03182908]
[1733230047134,2.2234,224.85,224.8,10.25552908]
[1733230047331,8.03182908,224.86,224.8,2.2237]
[1733230047729,351.2762362,224.88,224.78,8.03182908]
[1733230047938,351.2762362,224.88,224.78,7.9678865]
[1733230047939,8.03182908,224.86,224.78,7.9678865]
[1733230048537,8.03182908,224.86,224.79,2.2238]
[1733230048538,2.2234,224.84,224.79,2.2238]
[1733230049040,8.03182908,224.86,224.78,7.9678865]
[1733230049333,2.2234,224.85,224.8,2.2237]
[1733230049939,2.2234,224.85,224.78,7.32433526]
[1733230050136,8.03182908,224.86,224.78,7.32433526]
[1733230050437,8.03182908,224.86,224.77,1.2773]
[1733230050637,2.2235,224.84,224.79,2.2238]
[1733230052044,2.2235,224.84,224.79,1.60785175]
[1733230052635,2.2235,224.84,224.78,8.03182908]
[1733230052836,2.2235,224.84,224.8,2.2238]
[1733230053040,2.2235,224.84,224.8,1.60993226]
[1733230053743,306.8825488,224.85,224.77,1.2773]
[1733230053937,2.2235,224.83,224.79,1.43760667]
[1733230055542,2.2235,224.83,224.78,2.224]
[1733230056043,2.2235,224.83,224.77,7.94094585]
[1733230056643,2.2235,224.83,224.78,2.2239]
[1733230057339,2.2236,224.82,224.78,2.2239]
[1733230057941,2.2236,224.82,224.77,7.01155672]
[1733230058540,2.2236,224.83,224.79,10.25572908]
[1733230058844,306.8825488,224.84,224.79,8.03182908]
[1733230059140,2.2237,224.82,224.78,2.224]
[1733230059947,2.2237,224.82,224.77,6.98207954]
[1733230061246,2.2237,224.82,224.78,2.224]
[1733230061446,2.2237,224.82,224.77,6.98207954]
[1733230061447,2.2236,224.82,224.77,6.98207954]
[1733230061646,2.2236,224.82,224.77,9.20607954]
[1733230062643,8.03182908,224.82,224.71,1.2901]
[1733230062944,2.2239,224.79,224.75,2.2243]
[1733230063243,8.03182908,224.82,224.74,10.25622908]
[1733230063244,2.224,224.78,224.74,10.25622908]
[1733230063645,8.03182908,224.82,224.74,8.03182908]
[1733230063853,2.224,224.79,224.75,2.2242]
[1733230064043,8.03182908,224.82,224.74,8.03182908]
[1733230064249,8.03182908,224.82,224.72,2.16]
[1733230064449,2.224,224.78,224.74,10.25622908]
[1733230065753,2.224,224.78,224.74,8.03182908]
[1733230067055,2.2239,224.79,224.74,8.03182908]
[1733230067654,2.2239,224.79,224.75,2.2243]
[1733230068255,2.224,224.78,224.74,2.2244]
[1733230072459,2.224,224.79,224.75,2.2243]
[1733230073451,2.224,224.79,224.73,10.19182908]
[1733230073452,1.2678,224.89,224.77,8.03182908]
[1733230073658,8.03182908,224.85,224.77,8.03182908]
[1733230074361,2.2236,224.82,224.77,10.25582908]
[1733230075261,2.2236,224.82,224.73,2.16]
[1733230075262,2.2235,224.83,224.79,8.03182908]
[1733230075660,2.2235,224.83,224.79,10.25572908]
[1733230076263,2.2235,224.83,224.79,8.03182908]
[1733230076461,2.2232,224.86,224.79,8.03182908]
[1733230076655,0.56405,224.9,224.82,8.03182908]
[1733230076855,8.59587908,224.9,224.84,8.03182908]
[1733230077162,2.223,224.89,224.84,8.03182908]
[1733230077363,8.59587908,224.9,224.84,8.03182908]
[1733230078159,2.223,224.89,224.84,8.03182908]
[1733230078360,0.56405,224.9,224.84,8.03182908]
[1733230079064,2.2231,224.87,224.84,8.03182908]
[1733230081058,2.2229,224.89,224.84,8.03182908]
[1733230081268,0.56405,224.9,224.86,8.03182908]
[1733230081664,2.78685,224.9,224.86,8.03182908]
[1733230082068,2.2229,224.89,224.86,8.03182908]
[1733230082270,2.2229,224.89,224.84,10.25512908]
[1733230082469,0.56405,224.9,224.83,2.16]
[1733230082666,2.2232,224.87,224.83,2.16]
[1733230082860,8.03182908,224.89,224.83,2.16]
[1733230083866,8.03182908,224.89,224.82,8.03182908]
[1733230083867,2.2231,224.87,224.82,8.03182908]
[1733230084068,8.03182908,224.88,224.82,8.03182908]
[1733230084265,8.03182908,224.88,224.79,6.0715]
[1733230084266,8.03182908,224.86,224.79,2.16]
[1733230084468,2.2236,224.83,224.79,10.19182908]
[1733230084973,8.03182908,224.86,224.79,10.19182908]
[1733230085669,8.03182908,224.84,224.75,2.16]
[1733230085866,2.16,224.87,224.75,10.19182908]
[1733230085867,8.03182908,224.82,224.75,10.19182908]
[1733230086069,2.2241,224.78,224.75,2.16]
[1733230086366,8.03182908,224.82,224.75,2.16]
[1733230086772,8.03182908,224.84,224.76,8.03182908]
[1733230087370,2.2237,224.82,224.77,2.2241]
[1733230087668,8.03182908,224.85,224.78,8.03182908]
[1733230088266,0.56405,224.9,224.83,2.2234]
[1733230088469,0.56405,224.9,224.82,8.03182908]
[1733230088470,0.56405,224.9,224.88,8.03182908]
[1733230090976,0.56405,224.9,224.88,10.25482908]
[1733230091373,0.56405,224.9,224.88,8.03182908]
[1733230091567,8.03182908,224.99,224.88,8.03182908]
[1733230091773,2.2224,224.95,224.9,8.03182908]
[1733230092067,8.03182908,224.95,224.87,2.12]
[1733230092275,8.03182908,224.95,224.88,8.03182908]
[1733230092473,2.2225,224.93,224.88,8.03182908]
[1733230092669,8.03182908,224.95,224.87,2.12]
[1733230092874,8.03182908,224.95,224.87,10.15182908]
[1733230093179,8.03182908,224.93,224.87,2.12]
[1733230093868,2.2228,224.91,224.87,2.12]
[1733230094068,8.03182908,224.93,224.87,2.12]
[1733230094268,8.03182908,224.91,224.83,6.214]
[1733230094472,2.223,224.88,224.83,14.24582908]
[1733230094670,8.03182908,224.92,224.83,14.24582908]
[1733230095078,2.2229,224.89,224.83,14.24582908]
[1733230095373,8.03182908,224.97,224.87,8.03182908]
[1733230095572,0.71178,225.02,224.92,8.03182908]
[1733230095777,0.71178,225.02,224.88,2.12]
[1733230095778,8.74360908,225.02,224.94,8.03182908]
[1733230095972,8.74360908,225.02,224.94,10.15182908]
[1733230096179,0.71178,225.02,224.94,10.15182908]
[1733230096382,8.74360908,225.02,224.94,10.15182908]
[1733230096569,8.74360908,225.02,224.96,8.03182908]
[1733230097973,2.2217,225.01,224.96,8.03182908]
[1733230098375,2.2217,225.01,224.96,10.15182908]
[1733230101780,2.2217,225.01,224.98,8.03182908]
[1733230103378,0.71178,225.02,224.83,4.094]
[1733230103684,0.71178,225.02,224.95,8.03182908]
[1733230103685,2.222,224.98,224.95,8.03182908]
[1733230103880,0.71178,225.02,224.95,8.03182908]
[1733230104084,2.2218,225.0,224.97,8.03182908]
[1733230104380,0.71178,225.02,224.97,8.03182908]
[1733230104788,2.2217,225.01,224.97,8.03182908]
[1733230108180,8.74360908,225.02,224.94,2.12]
[1733230108384,8.74360908,225.02,224.94,10.15182908]
[1733230108689,2.2221,224.98,224.94,10.15182908]
[1733230108890,8.74360908,225.02,224.94,10.15182908]
[1733230109389,2.222,224.98,224.94,10.15182908]
[1733230110889,8.74360908,225.02,224.94,10.15182908]
[1733230111093,2.2219,225.0,224.96,8.03182908]
[1733230111291,0.71178,225.02,224.96,8.03182908]
[1733230111491,2.2218,225.01,224.96,8.03182908]
[1733230111789,0.71178,225.02,224.96,8.03182908]
[1733230112188,8.74360908,225.02,224.94,10.15182908]
[1733230112393,8.03182908,225.0,224.94,2.12]
[1733230112793,8.03182908,224.98,224.88,2.2229]
[1733230112989,8.03182908,224.96,224.89,8.03182908]
[1733230113186,8.03182908,224.96,224.84,58.68683446]
[1733230113393,2.2228,224.9,224.88,2.12]
[1733230113592,2.2228,224.9,224.87,8.03182908]
[1733230113987,8.03182908,224.94,224.87,8.03182908]
[1733230113988,2.2227,224.91,224.87,8.03182908]
[1733230114792,2.12,224.97,224.89,8.03182908]
[1733230114994,10.15182908,224.97,224.89,8.03182908]
[1733230115199,8.03182908,224.95,224.89,8.03182908]
[1733230115395,2.2227,224.91,224.86,2.12]
[1733230115594,8.03182908,224.95,224.87,8.03182908]
[1733230115894,2.2228,224.9,224.87,8.03182908]
[1733230118793,2.2229,224.89,224.86,2.12]
[1733230119390,2.223,224.88,224.86,2.12]
[1733230119891,2.2229,224.9,224.87,8.03182908]
[1733230120490,8.03182908,224.95,224.87,8.03182908]
[1733230121295,2.2228,224.9,224.87,8.03182908]
[1733230121696,8.03182908,224.95,224.87,8.03182908]
[1733230121890,8.03182908,224.93,224.84,58.68683446]
[1733230122091,8.03182908,224.93,224.84,68.83866354]
[1733230122293,2.12,224.97,224.84,2.12]
[1733230122294,2.2229,224.89,224.84,2.12]
[1733230122503,8.03182908,224.91,224.84,2.12]
[1733230122893,8.03182908,224.93,224.85,8.03182908]
[1733230123297,8.03182908,224.93,224.87,8.03182908]
[1733230123494,2.2228,224.9,224.87,8.03182908]
[1733230123804,10.15182908,224.96,224.89,8.03182908]
[1733230124100,2.2228,224.91,224.87,8.03182908]
[1733230124397,2.2227,224.92,224.87,8.03182908]
[1733230124790,8.03182908,224.96,224.87,8.03182908]
[1733230126796,2.2227,224.92,224.87,8.03182908]
[1733230127897,2.2225,224.94,224.88,2.2229]
[1733230128101,8.03182908,224.96,224.87,8.03182908]
[1733230129099,2.2225,224.93,224.88,2.223]
[1733230129693,2.2227,224.92,224.87,8.03182908]
[1733230130097,8.03182908,224.96,224.87,8.03182908]
[1733230130402,8.03182908,224.94,224.87,8.03182908]
[1733230130592,2.2226,224.92,224.87,8.03182908]
[1733230131100,2.2226,224.92,224.87,10.25492908]
[1733230131594,2.2226,224.92,224.87,2.2231]
[1733230131801,8.03182908,224.94,224.85,4.0909]
[1733230131995,8.03182908,224.94,224.85,12.12272908]
[1733230132196,8.03182908,224.94,224.85,14.34602908]
[1733230132197,2.2227,224.92,224.85,14.34602908]
[1733230132394,8.03182908,224.94,224.85,14.34602908]
[1733230133899,8.03182908,224.94,224.85,12.12272908]
[1733230134397,2.12,224.98,224.85,12.12272908]
[1733230134602,2.2228,224.9,224.85,14.34592908]
[1733230135898,2.223,224.89,224.85,12.12272908]
[1733230136799,2.223,224.88,224.85,2.767]
[1733230137006,8.03182908,224.94,224.85,10.79882908]
[1733230137308,2.2229,224.9,224.85,10.79882908]
[1733230137900,2.223,224.89,224.85,10.79882908]
[1733230139408,2.223,224.88,224.85,10.79882908]
[1733230142002,2.2233,224.86,224.84,2.12]
[1733230142400,8.03182908,224.92,224.84,2.12]
[1733230142401,2.2233,224.85,224.84,2.12]
[1733230144012,2.2238,224.81,224.79,1.3423]
[1733230144214,8.03182908,224.86,224.79,8.03182908]
[1733230145008,8.03182908,224.86,224.77,2.12]
[1733230145208,8.03182908,224.86,224.78,8.03182908]
[1733230145809,2.2237,224.82,224.78,8.03182908]
[1733230146208,2.2235,224.84,224.78,8.03182908]
[1733230146409,8.03182908,224.86,224.78,8.03182908]
[1733230146813,2.2237,224.81,224.78,8.03182908]
[1733230147212,8.03182908,224.86,224.77,10.15182908]
[1733230147716,2.2237,224.82,224.77,10.15182908]
[1733230149014,2.2237,224.82,224.77,10.25592908]
[1733230149217,8.03182908,224.86,224.77,10.15182908]
[1733230150411,2.2236,224.82,224.77,10.15182908]
[1733230151008,2.2236,224.82,224.78,2.224]
[1733230151212,2.2236,224.82,224.77,10.15182908]
[1733230151811,2.2236,224.82,224.78,8.03182908]
[1733230153013,2.2235,224.84,224.78,8.03182908]
[1733230153216,8.03182908,224.86,224.78,8.03182908]
[1733230154215,8.03182908,224.82,224.69,60.03204449]
[1733230154416,8.03182908,224.8,224.73,8.03182908]
[1733230154818,8.03182908,224.8,224.73,10.25632908]
[1733230155117,8.03182908,224.8,224.73,8.03182908]
[1733230155316,2.224,224.78,224.73,8.03182908]
[1733230155710,2.224,224.78,224.73,10.25632908]
[1733230155917,8.03182908,224.78,224.7,1.2796]
[1733230156116,8.03182908,224.78,224.7,9.31142908]
[1733230156419,8.03182908,224.78,224.7,1.2796]
[1733230156610,2.2243,224.75,224.7,3.3996]
[1733230156913,2.2243,224.75,224.71,8.03182908]
[1733230159014,2.2243,224.75,224.7,5.6244]
[1733230159220,2.2242,224.77,224.72,10.25642908]
[1733230159416,1.268,224.88,224.74,8.03182908]
[1733230159622,8.03182908,224.83,224.74,8.03182908]
[1733230159818,8.03182908,224.83,224.75,2.12]
[1733230160123,8.03182908,224.76,224.46,4.42751087]
[1733230160314,46.3,224.85,224.58,8.03182908]
[1733230160315,1.2675,224.75,224.58,8.03182908]
[1733230160515,2.773,224.82,224.64,8.03182908]
[1733230160720,2.773,224.82,224.66,8.03182908]
[1733230160721,8.03182908,224.72,224.66,8.03182908]
[1733230161018,8.03182908,224.72,224.67,2.12]
[1733230161223,8.03182908,224.72,224.68,2.225]
[1733230161722,2.773,224.82,224.68,8.03182908]
[1733230161925,8.03182908,224.78,224.72,8.03182908]
[1733230162121,45.63434755,224.84,224.73,2.12]
[1733230162323,8.03182908,224.78,224.73,2.12]
[1733230163628,8.03182908,224.78,224.73,4.3444]
[1733230164525,10.25582908,224.78,224.73,4.3444]
[1733230165323,8.03182908,224.78,224.73,4.3444]
[1733230166028,10.25582908,224.78,224.73,4.3444]
[1733230167527,8.03182908,224.78,224.73,2.12]
[1733230167721,2.12,224.85,224.74,8.03182908]
[1733230167929,2.12,224.88,224.76,8.03182908]
[1733230168225,8.03182908,224.82,224.74,8.03182908]
[1733230169027,2.2237,224.81,224.76,2.2241]
[1733230170030,2.2237,224.81,224.77,2.2241]
[1733230170933,8.03182908,224.86,224.78,8.03182908]
[1733230171133,8.03182908,224.86,224.79,2.2238]
[1733230171727,2.2235,224.84,224.78,10.15182908]
[1733230171931,8.03182908,224.86,224.78,10.15182908]
[1733230172133,8.03182908,224.86,224.78,2.12]
[1733230174025,2.2236,224.83,224.78,2.12]
[1733230175235,2.2236,224.82,224.78,2.12]
[1733230175843,2.2239,224.79,224.73,2.2244]
[1733230176140,2.2239,224.79,224.75,8.03182908]
[1733230176334,8.03182908,224.82,224.74,2.12]
[1733230176532,2.2239,224.8,224.74,10.15182908]
[1733230176740,8.03182908,224.82,224.74,10.15182908]
[1733230176942,8.03182908,224.84,224.76,8.03182908]
[1733230177237,8.03182908,224.84,224.74,2.12]
[1733230177238,2.2239,224.8,224.74,2.12]
[1733230177440,8.03182908,224.84,224.76,8.03182908]
[1733230178942,2.2241,224.8,224.76,8.03182908]
[1733230179139,2.12,224.85,224.74,2.12]
[1733230179346,8.03182908,224.82,224.75,8.03182908]
[1733230179642,2.2241,224.8,224.75,8.03182908]
[1733230179843,8.03182908,224.82,224.75,8.03182908]
[1733230180245,8.03182908,224.82,224.74,2.12]
[1733230180442,8.03182908,224.8,224.74,2.12]
[1733230181046,2.2244,224.77,224.74,2.12]
[1733230187052,2.2242,224.79,224.74,10.15182908]
[1733230187252,2.12,224.85,224.74,10.15182908]
[1733230187253,8.03182908,224.84,224.76,8.03182908]
[1733230187745,8.03182908,224.85,224.78,8.03182908]
[1733230188351,2.224,224.81,224.78,8.03182908]
[1733230188746,2.2238,224.83,224.78,10.25602908]
[1733230188947,2.12,224.87,224.78,8.03182908]
[1733230189146,10.15182908,224.87,224.78,8.03182908]
[1733230189445,2.2237,224.84,224.78,10.25602908]
[1733230190454,2.2238,224.83,224.78,10.25602908]
[1733230192252,2.2239,224.82,224.78,10.25602908]
[1733230192454,2.2239,224.82,224.78,8.03182908]
[1733230193450,2.2239,224.82,224.77,2.2243]
[1733230193653,2.2239,224.82,224.78,8.03182908]
[1733230195249,2.224,224.81,224.78,8.03182908]
[1733230197154,8.03182908,224.85,224.78,8.03182908]
[1733230197355,2.224,224.8,224.78,8.03182908]
[1733230198559,2.224,224.81,224.78,8.03182908]
[1733230199260,8.03182908,224.85,224.78,8.03182908]
[1733230200661,2.2239,224.82,224.78,8.03182908]
[1733230201162,2.2239,224.82,224.78,10.25602908]
[1733230202460,8.03182908,224.85,224.78,8.03182908]
[1733230202661,8.03182908,224.85,224.76,8.03182908]
[1733230203064,8.03182908,224.81,224.68,4.0028]
[1733230203358,8.03182908,224.79,224.72,8.03182908]
[1733230203564,2.2243,224.77,224.72,10.25662908]
[1733230205860,2.2246,224.75,224.71,2.2249]
[1733230206056,8.03182908,224.77,224.69,8.03182908]
[1733230206264,2.2249,224.72,224.69,8.03182908]
[1733230206463,8.03182908,224.77,224.69,8.03182908]
[1733230206760,8.03182908,224.77,224.68,4.0028]
[1733230206962,8.03182908,224.77,224.69,8.03182908]
[1733230207159,8.03182908,224.75,224.69,8.03182908]
[1733230207963,2.2249,224.72,224.69,8.03182908]
[1733230208168,8.03182908,224.75,224.69,8.03182908]
[1733230208366,8.03182908,224.73,224.66,2.12]
[1733230208564,2.2252,224.69,224.65,8.03182908]
[1733230208763,8.03182908,224.73,224.65,8.03182908]
[1733230208967,8.03182908,224.67,224.59,4.0346]
[1733230209169,2.2256,224.64,224.59,12.06642908]
[1733230209368,10.15182908,224.67,224.59,12.06642908]
[1733230209562,2.12,224.67,224.63,8.03182908]
[1733230209764,2.2253,224.67,224.65,8.03182908]
[1733230209968,2.2253,224.67,224.63,8.03182908]
[1733230211167,2.2255,224.66,224.63,8.03182908]
[1733230211970,8.03182908,224.69,224.63,8.03182908]
[1733230212171,2.2253,224.67,224.63,8.03182908]
[1733230212476,10.15182908,224.71,224.63,8.03182908]
[1733230212670,8.03182908,224.71,224.63,8.03182908]
[1733230212866,2.2251,224.7,224.65,8.03182908]
[1733230214070,1.2672,224.8,224.61,2.12]
[1733230214071,1.2672,224.8,224.69,8.03182908]
[1733230214371,8.03182908,224.77,224.69,8.03182908]
[1733230214573,2.2247,224.73,224.69,8.03182908]
[1733230215273,8.03182908,224.77,224.69,8.03182908]
[1733230215465,311.3286488,224.91,224.71,8.03182908]
[1733230215671,1.3375,224.81,224.75,8.03182908]
[1733230216174,8.03182908,224.82,224.75,8.03182908]
[1733230216674,2.2241,224.8,224.75,8.03182908]
[1733230216875,8.03182908,224.82,224.75,8.03182908]
[1733230217974,2.2243,224.78,224.75,8.03182908]
[1733230218171,8.03182908,224.8,224.73,8.03182908]
[1733230218374,8.03182908,224.78,224.68,2.6357]
[1733230218571,2.2246,224.74,224.7,8.03182908]
[1733230218979,2.2246,224.74,224.69,2.12]
[1733230219274,2.2246,224.74,224.7,8.03182908]
[1733230222075,2.2245,224.75,224.72,8.03182908]
[1733230222270,8.03182908,224.79,224.72,8.03182908]
[1733230223078,2.2243,224.77,224.72,8.03182908]
[1733230223270,8.03182908,224.79,224.72,8.03182908]
[1733230223670,2.2243,224.77,224.72,8.03182908]
[1733230223872,8.03182908,224.79,224.72,8.03182908]
[1733230224181,2.2246,224.75,224.72,8.03182908]
[1733230228170,2.2242,224.79,224.74,10.25642908]
[1733230228776,2.2243,224.78,224.74,8.03182908]
[1733230229081,8.03182908,224.82,224.74,8.03182908]
[1733230229280,2.2243,224.78,224.74,8.03182908]
[1733230229680,8.03182908,224.82,224.74,8.03182908]
[1733230229877,2.2244,224.77,224.74,8.03182908]
[1733230230275,8.03182908,224.82,224.74,8.03182908]
[1733230230981,2.2244,224.77,224.72,8.03182908]
[1733230231181,2.12,224.84,224.7,8.03182908]
[1733230231182,8.03182908,224.78,224.7,8.03182908]
[1733230231779,2.2244,224.77,224.72,8.03182908]
[1733230231980,8.03182908,224.8,224.72,8.03182908]
[1733230232685,8.03182908,224.82,224.74,8.03182908]
[1733230233680,2.2241,224.8,224.74,8.03182908]
[1733230233876,8.03182908,224.82,224.74,8.03182908]
[1733230235080,8.03182908,224.8,224.73,2.2246]
[1733230235275,2.2243,224.78,224.73,2.2246]
[1733230235988,2.2243,224.77,224.73,2.2246]
[1733230236683,2.2245,224.76,224.71,10.25672908]
[1733230236981,8.03182908,224.8,224.73,8.03182908]
[1733230237378,45.62762159,224.88,224.75,8.03182908]
[1733230237577,8.03182908,224.82,224.75,8.03182908]
[1733230238978,2.2241,224.8,224.75,10.25632908]
[1733230239185,8.03182908,224.82,224.75,10.25632908]
[1733230239584,2.2241,224.8,224.74,4.3446]
[1733230240376,2.2241,224.8,224.75,2.2245]
[1733230241382,2.2241,224.8,224.75,10.25632908]
[1733230241586,8.03182908,224.82,224.74,10.15182908]
[1733230242687,2.2242,224.79,224.74,12.37642908]
[1733230243683,8.03182908,224.83,224.76,2.2244]
[1733230244584,2.2241,224.8,224.75,2.2245]